bitfinex-derivatives/quotes_SOLF0:USTF0_20241029
["timestamp","ask_amount","ask_price","bid_price","bid_amount"]
[1730198176026,3.92,181.08,181.05,2.763]
[1730198177630,5.93941466,181.07,181.05,2.763]
[1730198178830,3.92,181.08,181.05,2.763]
[1730198185237,6.6827,181.08,181.05,2.763]
[1730198186944,6.6827,181.08,181.02,5.93941466]
[1730198186945,6.6827,181.08,181.04,2.7633]
[1730198187547,2.7629,181.07,181.03,2.7634]
[1730198190149,9.85941466,181.08,180.95,347.92]
[1730198190150,2.7633,181.05,181.0,2.7638]
[1730198190458,6.69360656,181.04,180.99,5.93941466]
[1730198190942,6.69360656,181.04,181.01,2.7636]
[1730198191345,2.7636,181.02,180.98,2.7641]
[1730198191546,2.7636,181.02,180.98,5.93941466]
[1730198191744,2.7636,181.02,180.96,5.93941466]
[1730198192142,2.7636,181.02,180.98,2.7641]
[1730198192750,2.7636,181.02,180.96,5.93941466]
[1730198192939,2.7636,181.02,180.99,2.764]
[1730198194455,9.45700656,181.04,181.0,5.93941466]
[1730198194852,6.69360656,181.04,181.01,5.93941466]
[1730198195149,3.92,181.04,181.03,5.93941466]
[1730198195544,3.92,181.04,181.01,5.93941466]
[1730198195856,3.92,181.04,181.02,2.7635]
[1730198196348,3.92,181.03,181.02,2.7635]
[1730198197148,3.92,181.03,181.01,5.93941466]
[1730198197361,3.92,181.03,181.01,8.70311466]
[1730198197654,3.92,181.03,180.93,121.64554823]
[1730198197855,9.85941466,181.03,180.93,117.72554823]
[1730198198054,9.85941466,181.03,180.97,5.93941466]
[1730198198455,2.7637,181.02,180.97,5.93941466]
[1730198198649,3.92,181.03,180.99,5.93941466]
[1730198198850,2.7636,181.02,180.99,8.70341466]
[1730198199156,2.7636,181.02,180.99,2.764]
[1730198199453,9.85941466,181.03,180.93,117.72554823]
[1730198199658,9.85941466,181.03,180.98,2.7641]
[1730198199659,2.7638,181.01,180.98,2.7641]
[1730198199861,5.93941466,181.01,180.93,117.72554823]
[1730198200055,8.70351466,180.99,180.93,123.66496289]
[1730198200252,3.92,180.98,180.93,7.16371466]
[1730198201361,3.92,180.98,180.95,5.93941466]
[1730198201946,3.92,180.98,180.95,8.70391466]
[1730198202855,3.92,180.98,180.97,2.7644]
[1730198207662,3.92,180.98,180.96,2.7644]
[1730198208854,3.92,180.98,180.97,8.70381466]
[1730198210961,2.7636,181.02,180.99,2.764]
[1730198211264,3.92,181.02,181.0,5.93941466]
[1730198211660,3.92,181.02,181.0,8.70321466]
[1730198211862,3.92,181.02,181.0,5.93941466]
[1730198212764,3.5701,181.09,181.0,5.93941466]
[1730198212950,3.5701,181.09,181.03,5.93941466]
[1730198212951,9.50951466,181.09,181.03,5.93941466]
[1730198213151,3.92,181.08,181.03,5.93941466]
[1730198213951,6.6827,181.08,181.04,2.7632]
[1730198214462,3.92,181.08,181.01,5.93941466]
[1730198214668,5.93941466,181.07,181.0,5.93941466]
[1730198214966,5.93941466,181.06,180.99,5.93941466]
[1730198215270,2.7632,181.05,181.01,2.7637]
[1730198215570,3.92,181.04,181.01,2.7637]
[1730198216559,3.92,181.04,180.94,116.48798977]
[1730198216766,6.6834,181.04,181.0,8.70331466]
[1730198219167,12.62281466,181.04,181.0,8.70331466]
[1730198220163,6.6834,181.04,181.0,8.70331466]
[1730198221464,6.6834,181.04,181.01,2.7637]
[1730198221465,3.92,181.04,181.01,2.7637]
[1730198225271,3.92,181.04,181.02,2.7635]
[1730198226170,9.85941466,181.04,180.94,116.48798977]
[1730198226479,9.85941466,181.04,180.98,5.93941466]
[1730198226873,12.62281466,181.04,181.0,2.7639]
[1730198227272,5.93941466,181.03,180.94,116.48798977]
[1730198227472,5.93941466,181.01,180.96,5.93941466]
[1730198227676,3.9,181.0,180.96,5.93941466]
[1730198228477,3.9,181.0,180.97,2.7643]
[1730198230277,3.9,181.0,180.98,5.93941466]
[1730198230980,3.9,181.0,180.99,2.7641]
[1730198238589,3.9,181.0,180.97,2.7642]
[1730198239092,3.9,181.0,180.96,5.93941466]
[1730198240288,3.9,181.0,180.98,2.7642]
[1730198241391,3.9,181.0,180.97,5.93941466]
[1730198242199,3.9,181.0,180.99,2.7641]
[1730198244400,3.9,181.0,180.93,1.2243]
[1730198244701,3.9,181.0,180.98,2.7642]
[1730198245602,3.9,181.0,180.99,2.7641]
[1730198249101,3.9,181.0,180.93,1.2243]
[1730198249306,6.664,181.0,180.97,2.7642]
[1730198250408,6.664,181.0,180.98,2.7641]
[1730198252809,3.9,181.0,180.98,2.7641]
[1730198254109,3.9,181.0,180.96,5.93941466]
[1730198254110,8.70351466,180.99,180.96,2.7645]
[1730198254308,5.93941466,180.99,180.93,5.93941466]
[1730198254708,8.70361466,180.99,180.95,2.7646]
[1730198255917,3.88,180.98,180.95,2.7646]
[1730198258816,19.40092762,181.05,180.97,5.93941466]
[1730198259022,5.93941466,181.02,180.97,8.70361466]
[1730198259517,8.70341466,181.0,180.96,2.7644]
[1730198259816,3.88,180.99,180.96,2.7644]
[1730198260412,3.88,180.99,180.97,2.7643]
[1730198265416,8.70341466,181.0,180.97,2.7643]
[1730198265613,3.88,180.98,180.97,2.7643]
[1730198267520,3.88,180.98,180.96,2.7645]
[1730198268738,3.88,180.98,180.95,8.70401466]
[1730198275727,3.88,180.98,180.95,2.7646]
[1730198276328,2.7642,180.99,180.94,5.93941466]
[1730198276630,3.88,180.98,180.96,2.7644]
[1730198277026,6.6442,180.98,180.96,2.7644]
[1730198282531,2.7646,180.96,180.92,5.93941466]
[1730198282728,2.7646,180.96,180.91,1.299]
[1730198282925,5.93941466,180.97,180.91,5.93941466]
[1730198283633,2.7647,180.95,180.93,2.7649]
[1730198283825,3.86,180.94,180.93,2.7649]
[1730198284325,3.86,180.94,180.9,2.7653]
[1730198284630,9.79941466,180.94,180.9,2.7653]
[1730198285437,2.7651,180.93,180.9,2.7653]
[1730198287828,2.7651,180.93,180.87,1.1885]
[1730198287829,2.7644,180.97,180.93,2.7648]
[1730198288023,3.86,180.96,180.93,2.7648]
[1730198289132,9.79941466,180.96,180.88,2.4522]
[1730198289330,2.7648,180.95,180.91,2.7652]
[1730198289532,8.77435575,180.95,180.88,5.93941466]
[1730198289934,8.77435575,180.95,180.9,2.7653]
[1730198291224,2.765,180.93,180.9,2.7653]
[1730198291529,3.86,180.92,180.9,2.7653]
[1730198291933,6.6253,180.92,180.88,2.7656]
[1730198292133,9.79941466,180.92,180.83,2.4984]
[1730198292330,5.93941466,180.89,180.83,1.2419]
[1730198292635,2.766,180.87,180.83,2.7664]
[1730198292836,5.93941466,180.87,180.83,2.7664]
[1730198294239,2.7661,180.86,180.83,2.7664]
[1730198294543,5.93941466,180.87,180.83,2.7664]
[1730198296237,5.93941466,180.87,180.84,2.7663]
[1730198301541,5.93941466,180.86,180.84,2.7663]
[1730198301941,5.93941466,180.86,180.83,2.7664]
[1730198302146,5.93941466,180.86,180.8,7.23081466]
[1730198302335,2.7659,180.87,180.8,7.23081466]
[1730198302534,2.7659,180.87,180.82,2.7666]
[1730198302535,8.70531466,180.87,180.82,2.7666]
[1730198302739,6.6258,180.88,180.82,5.93941466]
[1730198302944,12.56521466,180.88,180.82,5.93941466]
[1730198303546,12.56521466,180.88,180.83,2.7664]
[1730198303751,3.86,180.88,180.82,5.93941466]
[1730198304046,9.79941466,180.88,180.82,5.93941466]
[1730198304451,12.56511466,180.88,180.85,2.7661]
[1730198305847,8.70511466,180.88,180.85,2.7661]
[1730198306050,3.86,180.87,180.85,2.7661]
[1730198306752,2.7662,180.85,180.8,2.767]
[1730198306953,5.93941466,180.84,180.78,5.93941466]
[1730198307141,3.86,180.83,180.78,5.93941466]
[1730198307650,3.86,180.83,180.79,5.93941466]
[1730198308454,3.86,180.83,180.81,2.7667]
[1730198309758,77.6159,180.93,180.84,2.7662]
[1730198309958,77.6159,180.93,180.84,5.93941466]
[1730198310146,3.86,180.92,180.86,5.93941466]
[1730198310956,3.86,180.91,180.88,5.93941466]
[1730198312161,6.6253,180.91,180.88,2.7657]
[1730198312354,9.79941466,180.91,180.88,2.7657]
[1730198314454,3.86,180.91,180.88,2.7657]
[1730198317263,3.86,180.91,180.89,2.7656]
[1730198317458,3.86,180.91,180.87,5.93941466]
[1730198317854,3.86,180.91,180.89,2.7655]
[1730198318062,3.86,180.91,180.87,5.93941466]
[1730198318264,3.86,180.91,180.89,5.93941466]
[1730198319157,62.5251,180.93,180.89,5.93941466]
[1730198319358,3.86,180.92,180.9,2.7654]
[1730198320758,8.70401466,180.96,180.9,5.93941466]
[1730198320953,3.86,180.95,180.9,5.93941466]
[1730198321365,3.86,180.95,180.92,2.765]
[1730198321560,3.86,180.95,180.9,5.93941466]
[1730198322667,3.86,180.95,180.93,2.7649]
[1730198324570,3.86,180.94,180.93,2.7649]
[1730198326067,2.7646,180.96,180.93,2.7649]
[1730198326254,3.86,180.95,180.93,2.7649]
[1730198327865,3.86,180.95,180.92,8.70441466]
[1730198330663,3.86,180.95,180.93,2.765]
[1730198331475,3.86,180.95,180.94,2.7648]
[1730198332473,3.86,180.95,180.93,2.7649]
[1730198334066,2.7645,180.97,180.93,2.7649]
[1730198334266,3.86,180.96,180.93,2.7649]
[1730198334674,3.86,180.96,180.92,5.93941466]
[1730198335075,3.86,180.96,180.94,2.7648]
[1730198336279,2.7647,180.95,180.92,2.7651]
[1730198336483,3.86,180.96,180.92,5.93941466]
[1730198336873,6.6245,180.96,180.93,2.7649]
[1730198337481,6.6246,180.96,180.92,8.70441466]
[1730198337687,6.6246,180.96,180.92,5.93941466]
[1730198338075,1.2545,181.0,180.94,5.93941466]
[1730198338270,1.2545,181.0,180.97,2.7643]
[1730198338271,5.1145,181.0,180.97,2.7643]
[1730198338470,5.1145,181.0,180.95,5.93941466]
[1730198339581,7.8785,181.0,180.96,2.7644]
[1730198340376,5.1145,181.0,180.97,2.7644]
[1730198341081,3.86,181.0,180.95,5.93941466]
[1730198342280,5.93941466,181.02,180.98,2.7641]
[1730198342281,3.84,180.99,180.98,2.7641]
[1730198342583,3.84,180.99,180.89,7.6998]
[1730198342584,3.84,180.99,180.96,5.93941466]
[1730198342982,3.84,180.98,180.97,2.7642]
[1730198345575,3.84,180.98,180.89,7.6998]
[1730198345576,3.84,180.98,180.95,2.7646]
[1730198348582,5.93941466,180.97,180.88,5.93941466]
[1730198348781,8.70431466,180.94,180.88,5.93941466]
[1730198348985,3.84,180.93,180.9,2.7653]
[1730198349288,6.605,180.93,180.9,2.7653]
[1730198349488,3.84,180.93,180.9,2.7653]
[1730198350995,6.605,180.93,180.89,2.7655]
[1730198351196,5.93941466,180.92,180.89,2.7655]
[1730198353197,5.93941466,180.92,180.9,2.7654]
[1730198357494,5.93941466,180.91,180.8,347.6772]
[1730198357799,5.93941466,180.87,180.82,5.93941466]
[1730198357997,3.84,180.86,180.82,5.93941466]
[1730198359199,3.84,180.86,180.85,2.7661]
[1730198361205,3.84,180.86,180.82,5.93941466]
[1730198362294,3.84,180.86,180.85,2.7662]
[1730198369502,2.7651,180.93,180.85,5.93941466]
[1730198369803,3.84,180.95,180.92,5.93941466]
[1730198370004,3.84,180.98,180.95,2.7645]
[1730198370204,3.84,180.98,180.88,110.52118157]
[1730198370393,2.7639,181.01,180.89,2.4524]
[1730198370394,4.34,181.01,180.89,2.4524]
[1730198370597,5.93941466,180.99,180.89,3.6672]
[1730198370810,4.34,181.01,180.93,5.93941466]
[1730198371003,5.93941466,180.99,180.92,5.93941466]
[1730198371205,4.34,181.01,180.89,3.6672]
[1730198371509,5.93941466,181.0,180.94,5.93941466]
[1730198372301,5.93941466,181.0,180.96,2.7644]
[1730198372901,5.93941466,181.0,180.94,5.93941466]
[1730198372902,5.93941466,180.98,180.95,2.7647]
[1730198373103,4.34,180.97,180.92,5.93941466]
[1730198374002,4.34,180.97,180.94,2.7647]
[1730198374707,5.93941466,180.95,180.88,110.52118157]
[1730198374915,5.93941466,180.95,180.87,5.93941466]
[1730198375410,5.93941466,180.95,180.91,2.7652]
[1730198377411,5.93941466,180.95,180.87,5.93941466]
[1730198377611,5.93941466,180.95,180.91,2.7653]
[1730198378901,5.93941466,180.93,180.89,2.7655]
[1730198379107,4.34,180.92,180.89,2.7655]
[1730198379516,4.34,180.92,180.86,5.93941466]
[1730198380202,4.34,180.92,180.87,2.7658]
[1730198380408,10.27941466,180.92,180.86,5.93941466]
[1730198380608,10.27941466,180.92,180.85,5.93941466]
[1730198380816,10.27941466,180.92,180.89,2.7656]
[1730198381314,4.34,180.92,180.9,5.93941466]
[1730198382309,5.93941466,180.96,180.9,5.93941466]
[1730198382509,1.2863,181.02,180.9,5.93941466]
[1730198382716,5.93941466,180.97,180.9,5.93941466]
[1730198382916,5.93941466,180.95,180.92,2.7651]
[1730198383116,4.34,180.94,180.92,2.7651]
[1730198383908,4.34,180.94,180.93,2.765]
[1730198386319,10.27941466,180.94,180.9,2.7654]
[1730198386516,10.27941466,180.94,180.87,5.93941466]
[1730198386724,5.93941466,180.92,180.87,5.93941466]
[1730198386913,5.93941466,180.92,180.89,2.7656]
[1730198387213,5.93941466,180.9,180.84,5.93941466]
[1730198387417,4.34,180.89,180.88,2.7657]
[1730198390119,1.1937,180.94,180.87,5.93941466]
[1730198390419,4.34,180.93,180.91,2.7651]
[1730198391318,4.34,180.93,180.9,2.7654]
[1730198391726,5.93941466,180.92,180.9,2.7654]
[1730198392525,4.34,180.93,180.88,2.7656]
[1730198392822,4.34,180.93,180.87,5.93941466]
[1730198393516,4.34,180.93,180.89,2.7654]
[1730198393716,5.93941466,180.92,180.89,2.7654]
[1730198394616,5.93941466,180.92,180.9,2.7654]
[1730198398929,5.93941466,180.92,180.86,5.93941466]
[1730198399115,5.93941466,180.92,180.89,2.7655]
[1730198399425,5.93941466,180.92,180.86,5.93941466]
[1730198400332,2.7653,180.91,180.82,2.6053]
[1730198400630,5.93941466,180.91,180.85,5.93941466]
[1730198400833,5.93941466,180.91,180.87,2.7658]
[1730198401223,5.93941466,180.91,180.85,5.93941466]
[1730198401626,5.93941466,180.92,180.89,2.7654]
[1730198402823,5.93941466,180.92,180.87,5.93941466]
[1730198402824,8.70451466,180.92,180.88,2.7657]
[1730198403230,5.93941466,180.91,180.88,2.7657]
[1730198403822,5.93941466,180.89,180.84,5.93941466]
[1730198404021,10.43941466,180.89,180.84,5.93941466]
[1730198404624,4.5,180.89,180.87,2.7658]
[1730198405437,4.5,180.89,180.86,5.93941466]
[1730198406140,4.5,180.89,180.88,2.7657]
[1730198406939,4.5,180.9,180.86,5.93941466]
[1730198408243,4.5,180.9,180.89,2.7656]
[1730198409335,13.20491466,180.9,180.87,2.7659]
[1730198409538,5.93941466,180.88,180.83,5.93941466]
[1730198409937,5.93941466,180.88,180.85,2.766]
[1730198410537,8.70511466,180.88,180.85,2.766]
[1730198411438,5.93941466,180.88,180.86,2.766]
[1730198411639,2.7656,180.89,180.86,2.766]
[1730198414943,13.20491466,180.9,180.86,2.766]
[1730198419850,4.5,180.89,180.84,5.93941466]
[1730198420043,4.5,180.88,180.84,5.93941466]
[1730198420543,4.5,180.89,180.84,5.93941466]
[1730198420743,4.5,180.9,180.86,5.93941466]
[1730198421339,17.9113,181.01,180.88,5.93941466]
[1730198421539,5.93941466,180.94,180.89,5.93941466]
[1730198421739,10.43941466,180.94,180.89,5.93941466]
[1730198422450,10.43941466,180.94,180.92,2.765]
[1730198422946,10.43941466,180.94,180.89,5.93941466]
[1730198423248,4.5,180.94,180.93,2.765]
[1730198424364,4.5,180.95,180.94,2.7647]
[1730198426951,5.93941466,180.98,180.92,5.93941466]
[1730198427158,5.93941466,181.01,180.98,2.7642]
[1730198427352,4.5,181.0,180.98,2.7642]
[1730198427758,4.5,181.0,180.95,5.93941466]
[1730198428146,4.5,181.0,180.95,5.91408254]
[1730198428347,4.5,181.0,180.98,2.7641]
[1730198428751,4.5,181.0,180.95,5.91408254]
[1730198428952,5.32512762,181.05,180.99,2.7641]
[1730198429257,10.43941466,181.02,180.99,2.7641]
[1730198431159,13.20311466,181.02,180.98,2.7641]
[1730198431955,5.93941466,180.99,180.95,2.7645]
[1730198432156,5.93941466,180.97,180.95,2.7645]
[1730198432355,5.93941466,180.97,180.92,5.93941466]
[1730198434359,5.93941466,180.97,180.95,2.7647]
[1730198436654,10.31941466,180.98,180.95,2.7647]
[1730198436968,10.31941466,180.98,180.96,2.7645]
[1730198437166,4.38,180.97,180.94,5.93941466]
[1730198437467,4.38,180.98,180.94,5.93941466]
[1730198437773,4.38,180.98,180.97,2.7642]
[1730198439766,2.7636,181.02,180.99,2.764]
[1730198440068,4.38,181.01,180.99,2.764]
[1730198441672,13.08321466,181.01,180.98,2.7641]
[1730198442358,13.08321466,181.01,180.96,2.7644]
[1730198442560,13.08321466,181.01,180.95,5.93941466]
[1730198443572,13.08321466,181.01,180.97,2.7643]
[1730198444077,4.38,181.01,180.98,5.93941466]
[1730198444574,4.38,181.01,180.99,2.7641]
[1730198452891,5.32512762,181.05,180.98,5.93941466]
[1730198453089,5.32512762,181.05,180.9,453.11426477]
[1730198453090,5.32512762,181.05,181.0,5.93941466]
[1730198453385,4.38,181.04,181.0,5.93941466]
[1730198453783,4.38,181.04,181.01,2.7637]
[1730198455884,6.82722762,181.05,181.01,2.7637]
[1730198456083,4.38,181.04,181.03,2.7634]
[1730198456280,91.71487095,181.08,181.03,5.93941466]
[1730198456587,4.38,181.07,181.03,5.93941466]
[1730198456981,8.65235771,181.08,181.03,5.93941466]
[1730198457179,4.38,181.07,181.04,2.7632]
[1730198458186,4.38,181.07,181.03,5.93941466]
[1730198458488,4.38,181.08,181.04,5.93941466]
[1730198459581,2.80200082,181.1,181.06,2.7629]
[1730198459781,4.38,181.09,181.06,2.7629]
[1730198459981,10.31941466,181.09,181.06,2.7629]
[1730198460982,2.7629,181.07,181.03,2.7633]
[1730198461184,5.93941466,181.07,181.0,5.93941466]
[1730198461381,4.38,181.09,181.0,5.93941466]
[1730198461581,5.93941466,181.07,181.0,5.93941466]
[1730198462385,5.93941466,181.07,181.02,5.93941466]
[1730198462785,5.93941466,181.07,181.04,2.7632]
[1730198464391,8.70271466,181.05,181.01,2.7636]
[1730198464594,4.32,181.04,180.98,5.93941466]
[1730198464786,4.32,181.04,180.99,2.7639]
[1730198464787,7.0834,181.04,180.99,2.7639]
[1730198464990,10.25941466,181.04,180.98,5.93941466]
[1730198465396,10.25941466,181.04,181.0,2.7638]
[1730198467391,13.02271466,181.04,181.0,2.7638]
[1730198468393,2.7634,181.03,181.0,2.7638]
[1730198468985,8.70281466,181.03,181.0,2.7638]
[1730198469392,4.32,181.04,181.0,2.7638]
[1730198469590,5.93941466,181.03,181.0,2.7638]
[1730198471800,5.93941466,181.03,180.98,5.93941466]
[1730198472099,8.70301466,181.02,180.98,2.7641]
[1730198472895,5.93941466,181.02,180.99,2.764]
[1730198474589,4.32,181.01,180.99,2.764]
[1730198476594,4.32,181.01,181.0,2.7639]
[1730198477096,4.32,181.01,181.0,8.70331466]
[1730198477298,4.32,181.03,181.0,5.93941466]
[1730198477696,4.32,181.03,181.02,2.7636]
[1730198477899,8.70231466,181.07,181.01,5.93941466]
[1730198478095,4.32,181.04,181.01,5.93941466]
[1730198478288,4.32,181.04,181.03,2.7634]
[1730198479610,8.70231466,181.07,181.03,2.7634]
[1730198479795,4.32,181.06,181.03,2.7634]
[1730198480193,4.32,181.06,181.01,5.93941466]
[1730198480396,4.32,181.06,181.04,2.7633]
[1730198484797,4.32,181.06,181.03,5.93941466]
[1730198485002,4.32,181.06,181.05,2.7631]
[1730198485307,4.32,181.07,181.04,5.93941466]
[1730198485507,4.32,181.08,181.07,2.7628]
[1730198486304,62.4821,181.12,181.08,2.7626]
[1730198486498,5.93941466,181.11,180.99,4.32]
[1730198486705,4.32,181.1,181.05,5.93941466]
[1730198486899,4.32,181.1,181.07,2.7628]
[1730198488908,4.32,181.09,181.07,2.7628]
[1730198489409,4.32,181.09,181.05,8.70241466]
[1730198489610,10.25941466,181.09,181.05,2.763]
[1730198490109,13.02201466,181.09,181.05,2.763]
[1730198496311,7.0826,181.09,181.05,8.70241466]
[1730198496613,4.32,181.09,181.06,2.7629]
[1730198497210,4.32,181.09,181.08,2.7627]
[1730198497507,4.34,181.1,181.07,5.93941466]
[1730198497915,4.34,181.1,181.09,8.70191466]
[1730198501019,4.34,181.1,181.09,2.7625]
[1730198501517,4.34,181.1,181.07,2.7627]
[1730198501717,7.1025,181.1,181.07,2.7627]
[1730198501912,4.34,181.1,181.06,5.93941466]
[1730198502312,5.93941466,181.09,181.01,345.2223]
[1730198502517,5.93941466,181.07,181.01,351.16171466]
[1730198502714,4.34,181.06,181.01,351.16171466]
[1730198503020,7.1031,181.06,181.01,351.16171466]
[1730198503319,4.34,181.06,181.01,351.16171466]
[1730198503617,4.34,181.06,181.04,2.7632]
[1730198504620,4.34,181.06,181.05,2.7631]
[1730198504819,4.34,181.06,181.03,5.93941466]
[1730198505022,4.34,181.06,181.05,5.93941466]
[1730198505426,4.34,181.06,181.05,8.70251466]
[1730198507219,4.34,181.06,181.05,2.7631]
[1730198508320,4.34,181.06,181.03,5.93941466]
[1730198508518,4.34,181.06,181.04,2.7632]
[1730198510216,4.34,181.06,181.05,2.7631]
[1730198519022,4.05555721,181.15,181.04,5.93941466]
[1730198519222,10.27941466,181.14,181.09,5.93941466]
[1730198519525,2.762,181.13,181.1,2.7623]
[1730198520331,5.93941466,181.13,181.02,5.6367]
[1730198520523,2.7622,181.11,181.08,2.7626]
[1730198520719,4.34,181.1,181.08,2.7626]
[1730198520926,7.1025,181.1,181.06,2.7628]
[1730198521126,5.93941466,181.09,181.02,1.2967]
[1730198521328,5.93941466,181.09,181.03,5.93941466]
[1730198521928,4.34,181.1,181.07,2.7627]
[1730198524722,7.1024,181.1,181.07,2.7627]
[1730198530322,7.1024,181.1,181.06,8.70231466]
[1730198531426,4.34,181.1,181.06,8.70231466]
[1730198531624,5.93941466,181.09,181.05,2.7631]
[1730198532639,2.7628,181.08,181.04,8.70261466]
[1730198533736,5.93941466,181.09,181.04,2.7632]
[1730198534032,2.7632,181.05,181.0,5.93941466]
[1730198534241,4.26,181.05,181.0,5.93941466]
[1730198534438,2.7634,181.04,181.01,2.7637]
[1730198538033,4.26,181.05,180.96,1.2537]
[1730198538234,2.7637,181.02,180.99,2.7639]
[1730198538443,2.7637,181.02,180.98,5.93941466]
[1730198538635,7.0238,181.01,180.98,8.70351466]
[1730198538835,4.26,181.01,180.97,5.93941466]
[1730198539540,2.764,181.0,180.98,2.7642]
[1730198541440,7.0238,181.01,180.98,2.7642]
[1730198543145,4.26,181.04,181.0,5.93941466]
[1730198543353,4.26,181.04,181.03,5.93941466]
[1730198543645,4.26,181.04,181.03,8.70271466]
[1730198544835,4.26,181.04,180.97,1.3067]
[1730198545147,4.26,181.04,180.99,5.93941466]
[1730198546246,7.0234,181.04,181.01,2.7637]
[1730198546446,4.26,181.04,181.01,5.93941466]
[1730198546751,4.26,181.04,181.03,5.93941466]
[1730198546950,4.26,181.04,181.03,8.70281466]
[1730198547951,4.26,181.04,181.03,2.7634]
[1730198550655,4.26,181.04,181.03,8.70281466]
[1730198554360,2.7635,181.03,181.0,2.7638]
[1730198556063,7.0234,181.04,181.0,2.7638]
[1730198557754,7.0234,181.04,181.0,5.93941466]
[1730198557954,7.0234,181.04,181.01,2.7637]
[1730198561663,4.18,181.03,181.01,2.7637]
[1730198568165,2.7634,181.04,181.02,5.93941466]
[1730198568166,4.18,181.04,181.02,5.93941466]
[1730198568759,4.18,181.04,181.03,5.93941466]
[1730198568966,4.18,181.06,181.05,2.7631]
[1730198569266,4.18,181.06,181.05,8.70251466]
[1730198570059,4.18,181.06,181.05,2.7631]
[1730198570953,4.18,181.06,181.03,5.93941466]
[1730198571152,6.943,181.06,181.03,8.70281466]
[1730198572762,2.7632,181.05,181.03,5.93941466]
[1730198574171,7.19821466,181.11,181.04,5.93941466]
[1730198574465,4.18,181.1,181.04,5.93941466]
[1730198574673,2.7625,181.1,181.06,2.7629]
[1730198574973,2.7625,181.1,181.06,5.93941466]
[1730198574974,4.18,181.09,181.06,5.93941466]
[1730198576363,4.18,181.09,181.07,2.7627]
[1730198577371,4.18,181.09,181.06,8.70231466]
[1730198580383,4.18,181.09,181.07,5.93941466]
[1730198580583,4.18,181.1,181.08,2.7627]
[1730198580880,4.18,181.1,181.07,5.93941466]
[1730198581276,66.84851466,181.14,181.09,5.93941466]
[1730198581478,4.18,181.13,181.09,5.93941466]
[1730198581674,6.9421,181.13,181.09,8.70191466]
[1730198581871,6.9421,181.13,181.09,5.93941466]
[1730198582079,4.18,181.13,181.09,5.93941466]
[1730198582677,4.18,181.13,181.1,5.93941466]
[1730198583574,4.18,181.13,181.1,8.70171466]
[1730198583778,4.18,181.13,181.1,5.93941466]
[1730198585278,4.18,181.13,181.11,2.7621]
[1730198585473,4.18,181.13,181.1,5.93941466]
[1730198586473,4.18,181.13,181.1,8.70171466]
[1730198586681,16.6,181.22,181.12,5.93941466]
[1730198586682,2.7606,181.22,181.12,5.93941466]
[1730198586883,2.7606,181.22,181.19,5.93941466]
[1730198588784,2.7606,181.22,181.18,5.93941466]
[1730198590481,2.7606,181.22,181.19,5.93941466]
[1730198594289,4.18,181.23,181.19,5.93941466]
[1730198594989,2.7606,181.22,181.19,5.93941466]
[1730198595190,4.18,181.23,181.19,5.93941466]
[1730198596287,2.7607,181.21,181.19,5.93941466]
[1730198596487,4.18,181.23,181.19,5.93941466]
[1730198597795,2.7608,181.21,181.19,5.93941466]
[1730198599714,2.7596,181.29,181.23,2.7603]
[1730198599902,2.7596,181.29,181.28,5.93941466]
[1730198601705,2.7596,181.29,181.25,2.7601]
[1730198601893,2.7596,181.29,181.27,5.93941466]
[1730198603906,6.9392,181.31,181.27,5.93941466]
[1730198604201,6.9392,181.31,181.29,5.93941466]
[1730198604406,4.18,181.3,181.29,5.93941466]
[1730198606900,59.68,181.33,181.29,5.93941466]
[1730198607100,59.68,181.33,181.31,5.93941466]
[1730198607101,4.18,181.32,181.31,5.93941466]
[1730198607898,4.18,181.34,181.31,3.93941466]